Cogmind - Beta 13 @@@ ROGUE MODE // 2024.05.26 @ 02:30:09 Player: A Moose Result: Destroyed by G-47 Trooper with Particle Gun Performance ------------- Evolutions (2) 1000 Regions Visited (4) 800 Robots Destroyed (80) 400 Value Destroyed (2217) 2217 Prototype IDs (8) 160 Alien Tech Used (0) 0 Bonus (115) 115 TOTAL SCORE: 4692 Bonus ------- High Alert Combat Kills 90 Follower Combat Kills 25 Cogmind --------- Core Integrity 0/550 Matter 101/300 Energy 290/290 System Corruption 0% Temperature Warning (372) Movement Core (1800) Ox35 Location -8/Materials Parts ------- > --- POWER (1) -------- Reinforced Deuterium Engine > --- PROPULSION (2) --- (None) > --- UTILITY (5) ------ Huge Storage Unit Machine Analyzer Improved Power Shielding Makeshift Light Armor Plating Makeshift Light Armor Plating > --- WEAPON (3) ------- Grenade Launcher > --- INVENTORY (25) --- Subdweller Power Source Deuterium Engine Light Angular Momentum Engine Light Angular Momentum Engine Arachnoskeleton Armored Wheel High-capacity Storage Unit Medium Matter Pod (100) Faulty Experimental Sensor Array Improved Terrain Scanner Graphene Brace Hacking Suite Makeshift Hacking Suite Sensor Drone Bay (20/20) Subdweller Shrapnel Launcher Peak State ------------ > --- POWER ------------ Nuclear Core > --- PROPULSION ------- Armored Wheel Armored Wheel > --- UTILITY ---------- Improved Heat Sink Huge Storage Unit Machine Analyzer Makeshift Light Armor Plating Insulated Plating > --- WEAPON ----------- Ion Cannon Improved Assault Rifle Minigun > --- INVENTORY -------- Subdweller Power Source Deuterium Engine Light Angular Momentum Engine Light Angular Momentum Engine Arachnoskeleton Armored Wheel Armored Wheel High-capacity Storage Unit Medium Matter Pod Experimental Sensor Array Improved Terrain Scanner Improved Power Shielding Light Armor Plating Makeshift Light Armor Plating Makeshift Light Armor Plating Hacking Suite Makeshift Hacking Suite Sensor Drone Bay Ion Cannon Improved Assault Rifle Grenade Launcher Subdweller Shrapnel Launcher Welding Torch [Rating: 39] Favorites ----------- Power Ion Engine Engine Ion Engine Power Core Nuclear Core Propulsion Wheel Treads Light Treads Wheel Wheel Utility Huge Storage Unit Device Improved Heat Sink Storage Huge Storage Unit Processor Signal Interpreter Protection Makeshift Light Armor Plating Weapon Ion Cannon Energy Gun Medium Laser Energy Cannon Ion Cannon Ballistic Gun Assault Rifle Ballistic Cannon Light Cannon Launcher Grenade Launcher Special Weapon Welding Torch Build | -11 -10 -10 -10 -8 ------- Run | Yrd Mat Min Sub Mat Slots Evolved 4 | . . . . 4 Power . | . . . . . Propulsion . | . . . . . Utility 3 | . . . . 3 Weapon 1 | . . . . 1 Parts Attached 83 | 6 6 7 15 49 Power 5 | 1 . . 2 2 Engine 4 | 1 . . 2 1 Core 1 | . . . . 1 Reactor . | . . . . . Propulsion 21 | 2 2 1 2 14 Treads 2 | 2 . . . . Leg . | . . . . . Wheel 19 | . 2 1 2 14 Hover . | . . . . . Flight . | . . . . . Utility 24 | 1 2 4 3 14 Device 6 | . . 2 1 3 Storage 2 | 1 1 . . . Processor 2 | . . . 1 1 Hackware . | . . . . . Protection 14 | . 1 2 1 10 Artifact . | . . . . . Weapon 33 | 2 2 2 8 19 Energy Gun 5 | 2 1 . 2 . Energy Cannon 10 | . . . . 10 Ballistic Gun 7 | . 1 1 1 4 Ballistic Cannon 2 | . . . 2 . Launcher 8 | . . 1 3 4 Special Weapon 1 | . . . . 1 Impact Weapon . | . . . . . Slashing Weapon . | . . . . . Piercing Weapon . | . . . . . Special Melee Weapon . | . . . . . Unidentified Prototypes 3 | . . 1 . 2 Parts Lost 34 | . . 1 7 26 Power 3 | . . . 2 1 Propulsion 12 | . . 1 2 9 Utility 6 | . . . . 6 Weapon 13 | . . . 3 10 Highest Loss Streak 8 | . . 1 4 8 To Critical Strikes . | . . . . . Average Slot Usage (%) 94 | . 87 99 99 89 Engine 9 | . 14 14 13 1 Core 2 | . . . . 7 Treads 1 | . 8 . . . Wheel 21 | . 19 27 27 12 Device 2 | . . 2 . 4 Storage 12 | . 14 14 14 9 Processor 3 | . . . 1 9 Protection 13 | . 2 11 12 20 Energy Gun 8 | . 15 14 10 . Energy Cannon 4 | . . . . 12 Ballistic Gun 12 | . 12 13 14 11 Naked Turns . | . . . . . Heaviest Build 114 | 14 90 91 103 114 Greatest Support 40 | 40 40 20 20 30 Greatest Overweight (x) 36 | . 4 4 5 36 Average Overweight (x) 3 | . 2 4 4 4 Largest Inventory Capacity 25 | 8 25 25 25 25 Average Capacity 23 | 7 19 25 25 25 Most Carried 25 | 7 15 25 25 25 Average Carried 20 | 4 8 18 24 22 Final Capacity 25 | 8 25 25 25 25 Final Carried 25 | 5 15 25 25 17 Class Distribution -------------------- 69% | Mutant 29% | Tank Dominant Class ---------------- Mutant | -10/Materials Mutant | -10/Mines Mutant | -10/Subcaves Tank | -8/Materials Resources | -11 -10 -10 -10 -8 ----------- Run | Yrd Mat Min Sub Mat Matter Collected 2018 | 260 102 346 185 1125 Remotely . | . . . . . Salvage Created 2961 | 27 288 150 367 2129 Parts 154 | 4 20 4 25 101 Haulers Intercepted 5 | . 2 . . 3 Recyclers Shooed 6 | . 1 . . 5 Parts Field Recycled . | . . . . . Retrieved Matter . | . . . . . Parts Self-Destructed 10 | . . . 10 . Prevented . | . . . . . Kills | -11 -10 -10 -10 -8 ------- Run | Yrd Mat Min Sub Mat Combat Hostiles Destroyed 54 | . 3 6 13 32 Guns 31 | . 3 4 10 14 Cannons 13 | . . . 2 11 AOE 9 | . . 2 1 6 Classes Destroyed 12 | 1 4 1 1 5 Worker 5 | . 3 . . 2 Builder 1 | . . . . 1 Tunneler 5 | 2 . . . 3 Hauler 5 | . 2 . . 3 Recycler 8 | . 1 . . 7 Watcher 2 | . . . . 2 Swarmer 14 | . 3 3 4 4 Grunt 21 | . . 3 . 18 Brawler 1 | . . . . 1 Sentry 8 | . . . . 8 Heavy 1 | . . . . 1 Subdweller 9 | . . . 9 . Best Kill Streak 10 | 2 7 3 4 10 Combat Bots Only 9 | . 3 3 4 9 Max Kills in Single Turn 3 | 1 2 2 1 3 Gunslinging 1 | . 1 1 . . Exploded 2 | . . 2 1 2 Melee . | . . . . . Uniques/NPCs Destroyed . | . . . . . Combat | -11 -10 -10 -10 -8 -------- Run | Yrd Mat Min Sub Mat Hostile Shots Fired 371 | . 3 13 80 275 Missed 86 | . . 2 25 59 Damage Taken 4611 | . 25 139 1033 3414 Core 799 | . 15 30 203 551 Absorbed by Shields 80 | . . . . 80 Redirected to Shielding 66 | . . 7 . 59 Ignored by Resistances 42 | . . . 42 . Regen/Repaired (Parts) 36 | . . . . 36 Core Remaining (%) 50 | 100 . . . . Volleys Fired 221 | 5 15 12 54 135 Largest 3 | 2 2 2 2 3 Hottest 180 | 80 70 80 85 180 Shots Fired 441 | 10 30 24 108 269 Gun 298 | 10 30 18 82 158 Cannon 121 | . . . 19 102 Launcher 21 | . . 6 7 8 Special 1 | . . . . 1 Kinetic 246 | . 15 6 73 152 Thermal 162 | . 15 12 28 107 Explosive 14 | . . 6 7 1 Electromagnetic 19 | 10 . . . 9 Robot Hit Streak 17 | 2 15 11 17 15 Robot Miss Streak 4 | 2 2 3 2 4 Penetration Max . | . . . . . Secondary Targets 3 | . 1 1 . 1 Max Gunslinging Chain 1 | . 1 1 . 1 Shots Hit Robots 275 | 4 22 13 69 167 Core Hits 129 | 3 12 8 22 84 Critical Kills 1 | . . . . 1 Critical Parts Destroyed . | . . . . . Critical Strikes 8 | 1 1 1 3 2 Burn 5 | . 1 1 3 . Meltdown 1 | . . . . 1 Corrupt 2 | 1 . . . 1 Melee Attacks . | . . . . . Impact . | . . . . . Slashing . | . . . . . Piercing . | . . . . . Sneak Attacks . | . . . . . Combat Hostiles . | . . . . . Follow-up Attacks . | . . . . . Damage Inflicted 6251 | 80 301 299 1218 4353 Guns 2956 | 80 301 177 679 1719 Cannons 1790 | . . . 268 1522 Explosions 1503 | . . 122 271 1110 Melee . | . . . . . Ramming . | . . . . . Kinetic 3313 | . 145 84 742 2342 Thermal 2173 | . 156 93 205 1719 Explosive 457 | . . 122 271 64 Electromagnetic 308 | 80 . . . 228 Impact . | . . . . . Slashing . | . . . . . Piercing . | . . . . . Highest Corruption . | . . . . . Average Corruption . | . . . . . Corruption Purged . | . . . . . Corruption Blocked . | . . . . . Overload Shots . | . . . . . Overflow Damage 103 | . . 8 . 95 Projectiles 40 | . . . . 40 Explosions 63 | . . 8 . 55 Melee . | . . . . . Knockbacks 9 | . . . 9 . Impact . | . . . . . Kinetic 9 | . . . 9 . Secondary . | . . . . . Self-Inflicted Damage 97 | . . 16 35 46 Shots 6 | . . 1 3 2 Rammed . | . . . . . Targets Rammed . | . . . . . Kicked . | . . . . . Crushed . | . . . . . Highest Temperature 484 | 54 45 108 15 484 Average Temperature 124 | 26 12 41 3 148 Received Heat Transfer 1679 | . . 54 246 1379 Effects 20 | . . . . 20 Shutdowns 2 | . . . . 2 Energy Bleed 3 | . . . . 3 Interference 10 | . . . . 10 Matter Decay 1 | . . . . 1 Damage (major) 4 | . . . . 4 Siege Activations . | . . . . . Robots Corrupted . | . . . . . Combat Hostiles . | . . . . . Parts Fried 1 | . . . . 1 Impact Corruptions . | . . . . . Robots Melted 1 | . . . . 1 Combat Hostiles 1 | . . . . 1 Parts Melted 7 | . . 2 1 4 Heat Transferred 4252 | . 518 333 704 2697 Parts Sabotaged . | . . . . . Parts Stolen . | . . . . . Parts Stripped . | . . . . . Power Chain Reactions 2 | . . . . 2 Alert | -11 -10 -10 -10 -8 ------- Run | Yrd Mat Min Sub Mat Peak Influence 609 | 10 126 255 . 609 Initial 12 | . 6 12 . . Average 165 | 5 23 157 . 227 Maximum Alert Level 2 | . . 1 . 2 Low Security (%) 56 | 100 100 57 . 38 Level 1 39 | . . 42 . 52 Level 2 4 | . . . . 8 Level 3 . | . . . . . Level 4 . | . . . . . Level 5 . | . . . . . High Security . | . . . . . Max Security . | . . . . . Squads Dispatched 8 | . . 1 . 7 Investigation 1 | . . . . 1 Extermination . | . . . . . Reinforcement 4 | . . . . 4 Assault 1 | . . 1 . . Garrison 2 | . . . . 2 Intercept . | . . . . . Searches Triggered . | . . . . . Construction Impeded 2 | . . . . 2 Haulers Reinforced . | . . . . . Active Scanning Responses . | . . . . . Cargo Convoy Interrupts . | . . . . . Stealth | -11 -10 -10 -10 -8 --------- Run | Yrd Mat Min Sub Mat Distress Signals 6 | . . 1 . 5 Communications Jammed . | . . . . . Distress Signals . | . . . . . Times Spotted 81 | . 7 7 15 52 Peak Tracking Total 7 | . 3 3 4 7 Tactical Retreats 4 | . . . 1 3 Traps | -11 -10 -10 -10 -8 ------- Run | Yrd Mat Min Sub Mat Traps Triggered 1 | . . . . 1 Indirectly . | . . . . . Trap Hack Attempts . | . . . . . Triggered . | . . . . . Disarmed . | . . . . . Reprogrammed . | . . . . . Reused . | . . . . . Traps Extracted . | . . . . . Installed . | . . . . . Triggered . | . . . . . Machines | -11 -10 -10 -10 -8 ---------- Run | Yrd Mat Min Sub Mat Machines Disabled 14 | . . 11 . 3 Max in Single Turn 4 | . . 4 . 1 Machines Repaired . | . . . . . Machines Dismantled . | . . . . . Machines Sabotaged . | . . . . . Overloaded Fab Kills . | . . . . . Hacking | -11 -10 -10 -10 -8 --------- Run | Yrd Mat Min Sub Mat Machines Accessed 15 | . 6 2 1 6 Terminals 9 | . 5 . . 4 Fabricators . | . . . . . Repair Stations 2 | . 1 . . 1 Recycling Units . | . . . . . Scanalyzers 1 | . . . . 1 Garrison Access . | . . . . . Total Hacks 33 | . 11 2 1 19 Successful 15 | . 4 2 1 8 Failed 18 | . 7 . . 11 Catastrophic 1 | . 1 . . . Database Lockouts . | . . . . . Manual 13 | . 7 . 1 5 Terminals 22 | . 10 . . 12 Fabricators . | . . . . . Repair Stations 7 | . 1 . . 6 Recycling Units . | . . . . . Scanalyzers 1 | . . . . 1 Garrison Access . | . . . . . Terminal Hacks 11 | . 4 2 1 4 Record 1 | . . . 1 . Robot Analysis 3 | . 2 . . 1 Prototype ID Bank 2 | . 1 . . 1 Open Door 2 | . . 2 . . Emergency Access Points 2 | . 1 . . 1 Locate Traps 1 | . . . . 1 Fabricator Hacks . | . . . . . Repair Station Hacks 3 | . . . . 3 Scan Component 2 | . . . . 2 Repair 1 | . . . . 1 Recycling Unit Hacks . | . . . . . Scanalyzer 1 | . . . . 1 Insert Component 1 | . . . . 1 Garrison Access Hacks . | . . . . . Unauthorized Hacks . | . . . . . Terminals . | . . . . . Fabricators . | . . . . . Repair Stations . | . . . . . Recycling Units . | . . . . . Scanalyzers . | . . . . . Garrison Access . | . . . . . Data Cores Recovered . | . . . . . Used . | . . . . . Hacking Detections 9 | . 5 . . 4 Full Trace Events 3 | . 1 . . 2 Feedback Events . | . . . . . Feedback Blocked . | . . . . . Robot Schematics Acquired . | . . . . . Robots Built . | . . . . . Authchips . | . . . . . Time . | . . . . . Total Robot Build Rating . | . . . . . Part Schematics Acquired . | . . . . . Parts Built . | . . . . . Authchips . | . . . . . Time . | . . . . . Total Part Build Rating . | . . . . . Parts Repaired 1 | . . . . 1 Time 44 | . . . . 44 Parts Recycled . | . . . . . Recycled Matter . | . . . . . Retrieved Matter . | . . . . . Retrieved Components . | . . . . . Parts Scanalyzed . | . . . . . Part Schematics Acquired . | . . . . . Parts Damaged . | . . . . . Bothacking | -11 -10 -10 -10 -8 ------------ Run | Yrd Mat Min Sub Mat Used RIF Installer . | . . . . . Robots Hacked . | . . . . . Non-combat . | . . . . . Combat . | . . . . . Robot Hacks Applied . | . . . . . Relay Couplers Released . | . . . . . Fabnet Peak Effective % . | . . . . . Robots Rewired . | . . . . . Allies Hacked . | . . . . . Hacks Repelled . | . . . . . Allies | -11 -10 -10 -10 -8 -------- Run | Yrd Mat Min Sub Mat Total Allies 1 | . . 1 . . Largest Group 1 | . . 1 . . Highest-Rated Group 31 | . . 31 . . Highest-Rated Ally 31 | . . 31 . . Total Orders 1 | . . . 1 . RETURN 1 | . . . 1 . Ally Attacks 4 | . . 4 . . Total Damage 85 | . . 85 . . Kills 1 | . . 1 . . Allies Corrupted . | . . . . . Allies Melted . | . . . . . Intel | -11 -10 -10 -10 -8 ------- Run | Yrd Mat Min Sub Mat Robot Analysis Total 3 | . 2 . . 1 Derelict Logs Recovered 1 | . . 1 . . Drone Launches 1 | . . . 1 . Drone Recoveries 1 | . . . 1 . Exploration | -11 -10 -10 -10 -8 ------------- Run | Yrd Mat Min Sub Mat Turns Passed 4374 | 116 515 902 1242 1599 Spaces Moved 2200 | 60 302 577 748 513 Core 18 | 14 . . . 4 Treads 137 | 46 91 . . . Legs . | . . . . . Wheels 2045 | . 211 577 748 509 Hover . | . . . . . Flight . | . . . . . Fastest Speed 50 | 50 140 140 140 119 Average Speed 148 | 134 146 140 140 170 Slowest Speed 1850 | 160 160 140 155 1850 Overloaded Moves . | . . . . . Propulsion Burnouts . | . . . . . Robots Hopped . | . . . . . Cave-ins Triggered . | . . . . . Exploration Rate (%) 54 | 4 60 99 49 58 Regions Visited 4 Branch Regions 2 Pre-discovered Areas 1 | . . 1 . . Known Exits Taken 1 | . . . 1 . Unknown Exits Taken 3 | 1 1 1 . . Scrap Searched 2 | . . 1 1 . Spaces Dug 5 | . . . 5 . Terrain Destroyed 161 | . . 8 29 124 Melee . | . . . . . Projectile 13 | . . . . 13 AOE 148 | . . 8 29 111 Terrain Rammed . | . . . . . Walls Destroyed . | . . . . . Machines Disabled . | . . . . . Actions | -11 -10 -10 -10 -8 --------- Run | Yrd Mat Min Sub Mat Total 2947 | 86 347 644 835 1035 Wait 343 | 5 4 38 6 290 Move 2196 | 59 301 576 747 513 Hop . | . . . . . Pick Up 75 | 11 16 11 9 28 Fast Attach 1 | . . . . 1 Attach 52 | 6 4 1 7 34 Detach 6 | . . . . 6 Swap 30 | . 2 6 8 14 Drop 23 | . 5 . 4 14 Fire 221 | 5 15 12 54 135 Melee . | . . . . . Ram . | . . . . . Kick . | . . . . . Crush . | . . . . . Escape Stasis . | . . . . . Rewire . | . . . . . Trap . | . . . . . Miscellaneous . | . . . . . Route ------- -11/Scrapyard -10/Materials (discovered 2 exits: [*Mat] / *Min) -10/Mines (discovered 3 exits: [*Mat x2] / *Sub) -10/Subcaves (discovered 2 exits: *Mat x2) -8/Materials (discovered 3 exits: *Fac x3) History --------- Turn | Location | Event 5 | -11/Scrapyard | Discovered new exit (range 15) 117 | -11/Scrapyard | Entered Materials 317 | -10/Materials | Build established: Mutant 384 | -10/Materials | Discovered new exit (range 14) 585 | -10/Materials | Discovered new exit (range 6) 632 | -10/Materials | Entered Mines 703 | -10/Mines | Assembled infested the area 803 | -10/Mines | Found the Drone Emporium 810 | -10/Mines | Found Prototype Device 819 | -10/Mines | Identified Sensor Drone Bay 827 | -10/Mines | Discovered new exit (range 2) 883 | -10/Mines | Discovered new exit (range 6) 1001 | -10/Mines | Found a damaged Exp. Sensor Array with a note attached 1004 | -10/Mines | Found Prototype Device 1030 | -10/Mines | Met a Derelict testing a Signal Generator 1154 | -10/Mines | Learned 8 Materials zone layouts 1183 | -10/Mines | Learned location of Storage (-9) 1343 | -10/Mines | Met a Derelict who couldn't figure out how to use a Trap Extractor 1521 | -10/Mines | Discovered new exit (range 10) 1534 | -10/Mines | Entered Subcaves 1753 | -10/Subcaves | A swath of the cavern ceiling suddenly collapsed 1901 | -10/Subcaves | Visited Clippyterm 2165 | -10/Subcaves | Shifting Twisted Machinery released Spk. Treads 2196 | -10/Subcaves | Shifting Twisted Machinery released Sub. Shrapnel Launcher 2198 | -10/Subcaves | Shifting Twisted Machinery released Sub. Monowheel 2206 | -10/Subcaves | Shifting Twisted Machinery released Scrap Shield 2334 | -10/Subcaves | A Subdweller sparked back to life 2359 | -10/Subcaves | Core integrity fell below 50% 2387 | -10/Subcaves | Lost 4 parts (2n2w) 2387 | -10/Subcaves | Found Prototype Leg 2446 | -10/Subcaves | Shifting Twisted Machinery released Mak. Light Armor Plating 2447 | -10/Subcaves | Shifting Twisted Machinery released Sub. Laser 2547 | -10/Subcaves | Discovered new exit (range 12) 2576 | -10/Subcaves | Discovered new exit (range 8) 2611 | -10/Subcaves | Core integrity fell below 20% 2624 | -10/Subcaves | Identified exit to Materials 2776 | -10/Subcaves | Entered Materials 2776 | -8/Materials | Evolved 4 slots: Utility x3, Weapon x1 2777 | -8/Materials | Identified exit to Factory 2979 | -8/Materials | Lost 8 parts (4n2u2w) 3107 | -8/Materials | Repaired Broken Sub. Power Source 3108 | -8/Materials | Identified Exp. Sensor Array 3277 | -8/Materials | Build established: Tank 3760 | -8/Materials | Identified Arachnoskeleton 4216 | -8/Materials | Garrison activated, responded to threat 4218 | -8/Materials | Core integrity fell below 50% 4300 | -8/Materials | Lost 6 parts (2n2u2w) 4308 | -8/Materials | Destroyed 9 combat bots 4335 | -8/Materials | Core integrity fell below 20% 4340 | -8/Materials | Garrison activated, responded to threat 4375 | -8/Materials | Destroyed by G-47 Trooper with Particle Gun Last Messages --------------- Overheating: System interference. Imp. Assault Rifle temporarily disabled. Slug penetrates Wall. G-50 Soldier calls for garrison reinforcements. ALERT: Activating Garrison Access M001. R-06 Scavenger collects Arm. Treads. Overheating: Energy bleed (-69). Arm. Wheel destroyed. Slug penetrates Wall. Imp. Assault Rifle destroyed. Welding Torch destroyed. Slug penetrates Wall. Insulated Plating destroyed. Slug penetrates Wall. Overheating: Matter decay (-34). Slug penetrates Wall. G-50 Soldier destroyed. Wall collapses. Ion Cannon destroyed. K-01 Serf collects debris. Map ----- +----------------------------------------------------+ | ???????# """ #?????????# ###???????? | | ???????# #?????????# #?????????? | | ???????##########?????????# #?????????? | | ??????????????????????????# """ #?????????? | | ##????????????????????????# """ ###???????? | | #????????????????????????# """ ## ???????? | | #????????????????????????# ## ???????? | | #???????????????????????? ???????? | | ?????????????????????????????????????????? # | | ???????#?????????????????????????????????? #### | | ??????? ?????????????????????????????????? ##### | | ??????? ?????????????????????????????????? # | | ??????? ???????????????????????#?????????? + | | ??????? ????????????????????? #?????????? # | | ??????? ????????????????????? #?????????? # """ | | ???????# ?????"""???????????? #?????????? # "R | | ???????# ?????"""???????????? #?????????? # """ | | ???????# ?????"""??????????? +?????????? # | | ???????# ??????????????????? #?????????? ##### | | ???????# "##????????#??????# ##????????? ## | | ?###### #####+####### #????????? # | | ?# ! % r #????????? # | | / ! * ! k% #????????? + | | ?# %%=%= = = %g #????????? # | | ?## ## [=##/#########g # #????????? # | | ?????# % *%= ## =@ #? ###?????????# ### | | ?????# "[]]] ## g ???????????# #?# | | ?????# # ]]] ## h #????????# #?# | | ??#??# # ]]] ## ## #????????# #?#### | | ??# ?# # ## #####???????????# ###### | | ??# ?# # ##= #???????????????# | | ??# ###+#### """ #########???????????????# | | ### ### #??# """ #??????????????????###+## | | #### """ + ????? ^ | | + #????????????????##### ##+###### | | "" """ #### #??????????????????????# #? | | "" """ #??# ?#?????????############ ? #? | | "" """ #??#####????##+##### # #? | | ###?????????# T # # #? | | #?????????# + # #? | | ^ ########??# """ # # #? | | !=! ! # !! ##?# """ # ########? | | !=! # !! #?# """ # ######### | | != =#! #??# ]# # | | [ [+ "T" #??###+#### # | | !#!""" #????# #??# + """" | | ### # #????# #??# ???? # """" | | ??# ############# #### #????????? # """" | | ??# #?????????######## | | ??############################# #????????? #?? | +----------------------------------------------------+ Best States ------------- Heat Dissipation 45 Energy Generation 16 Energy Capacity 290 Matter Stores 300 Matter Capacity 300 Sight Range 16 Terrain Scan Range 16 Terrain Scan Density 10 Armor Coverage 250 Resistance: KI 20 Resistance: EM 15 Power Shielding 66 Evasion (%) 50 Recoil Reduction 2 Item Schematics ----------------- None Robot Schematics ------------------ None Fabricated ------------ Nothing Alien Tech Used ----------------- None Achievements -------------- None Challenges ------------ None Game ------ Seed SubdwellerLargeKatana Manual? 0 Play Time 00:46:48 Cumulative 116.0 hours Start 2024.05.26 @ 01:43:43 End 2024.05.26 @ 02:30:09 Sessions 1 Manual Loads 0 Difficulty Rogue Special Mode None Game No. 119 Rogue 110 Adventurer 9 Explorer 0 Win Type - Total 0 Types 0/0/0/0/0/0/0/0/0 Lore% 56 Gallery% 64 Achievement% 47 Wizard Run 0 Options --------- Layout 1 ASCII 0 Keyboard 0 Movement Numpad Keybinds 0 Fullscreen 1 Font 24/Smallcaps Map View 50x35 Zoom Use 0% Tactical HUD 0 Map Filters NONE Filters NONE Steam 1 RUN: 82c004a3-81bd-46e8-9df0-20586a48bcd4